bitfinex-derivatives/quotes_SOLF0:USTF0_20250907
["timestamp","ask_amount","ask_price","bid_price","bid_amount"]
[1757213081228,8.26275276,202.46,202.41,6.67]
[1757213081428,7.96,202.45,202.41,6.67]
[1757213081927,8.26275276,202.46,202.41,6.67]
[1757213082128,7.96,202.45,202.41,6.67]
[1757213082326,8.26275276,202.46,202.41,6.67]
[1757213082522,16.22275276,202.46,202.4,1.54801467]
[1757213082728,8.26275276,202.46,202.4,1.54801467]
[1757213082929,7.96,202.45,202.4,8.21801467]
[1757213083323,8.26275276,202.46,202.41,6.67]
[1757213083528,7.96,202.45,202.41,6.67]
[1757213084130,9.81076743,202.47,202.41,6.67]
[1757213084428,8.26275276,202.46,202.41,6.67]
[1757213084729,7.96,202.45,202.41,6.67]
[1757213084931,8.26275276,202.46,202.41,6.67]
[1757213085328,7.96,202.45,202.41,6.67]
[1757213085630,8.26275276,202.46,202.41,6.67]
[1757213086326,7.96,202.44,202.41,6.67]
[1757213086527,7.96,202.46,202.41,6.67]
[1757213086930,1.54801467,202.47,202.41,6.67]
[1757213087129,7.96,202.46,202.41,6.67]
[1757213087627,1.54801467,202.47,202.41,6.67]
[1757213087931,7.96,202.46,202.41,6.67]
[1757213088127,1.54801467,202.47,202.41,6.67]
[1757213088328,7.96,202.46,202.41,6.67]
[1757213088531,1.54801467,202.47,202.41,6.67]
[1757213088729,1.54801467,202.47,202.4,1.54801467]
[1757213089031,8.08,202.46,202.41,6.67]
[1757213089428,1.54801467,202.47,202.4,1.54801467]
[1757213089632,8.08,202.46,202.41,6.67]
[1757213090025,1.54801467,202.47,202.4,1.54801467]
[1757213090227,8.08,202.46,202.41,6.67]
[1757213090424,1.54801467,202.47,202.4,1.54801467]
[1757213090632,8.08,202.46,202.4,8.21801467]
[1757213091432,8.08,202.46,202.4,6.67]
[1757213104237,8.26275276,202.47,202.4,9.0873132]
[1757213104443,8.08,202.5,202.44,6.67]
[1757213106747,8.08,202.5,202.44,2.4173132]
[1757213106946,8.08,202.5,202.45,6.67]
[1757213107444,8.08,202.52,202.45,6.67]
[1757213114552,16.34275276,202.52,202.45,6.67]
[1757213116560,8.08,202.52,202.45,6.67]
[1757213126564,16.34275276,202.52,202.45,6.67]
[1757213127865,8.26275276,202.53,202.47,2.4173132]
[1757213128061,8.26275276,202.54,202.48,6.67]
[1757213128461,16.44275276,202.55,202.48,6.67]
[1757213128661,8.18,202.55,202.51,6.67]
[1757213128856,8.18,202.55,202.53,6.67]
[1757213129062,8.18,202.58,202.51,6.67]
[1757213129258,8.18,202.58,202.52,4.65815811]
[1757213129463,48.54275276,202.59,202.53,4.65815811]
[1757213129663,8.18,202.58,202.51,6.66]
[1757213129860,8.18,202.58,202.52,4.65688045]
[1757213130060,48.54275276,202.59,202.53,11.31688045]
[1757213130266,8.18,202.58,202.48,9.0773132]
[1757213130463,16.44275276,202.58,202.49,4.6551965]
[1757213130664,16.44275276,202.58,202.5,4.6551965]
[1757213130865,16.44275276,202.58,202.51,4.6551965]
[1757213131170,16.44275276,202.58,202.48,9.0773132]
[1757213131462,8.26275276,202.57,202.49,4.65439265]
[1757213131669,8.26275276,202.55,202.45,2.4173132]
[1757213131865,2.4173132,202.58,202.46,4.65471825]
[1757213131866,8.18,202.53,202.46,4.65471825]
[1757213132070,8.18,202.53,202.47,4.65471825]
[1757213132270,8.18,202.53,202.45,9.0773132]
[1757213132469,8.18,202.53,202.46,4.6551099]
[1757213132762,8.18,202.53,202.45,9.0773132]
[1757213132763,8.18,202.53,202.47,4.6551099]
[1757213132968,8.18,202.53,202.45,9.0773132]
[1757213133170,8.18,202.53,202.46,4.6551099]
[1757213133369,8.18,202.53,202.47,4.6551099]
[1757213133565,8.18,202.53,202.45,9.0773132]
[1757213133767,8.18,202.53,202.46,4.65517549]
[1757213133962,8.18,202.53,202.47,4.65517549]
[1757213134166,8.18,202.53,202.45,9.0773132]
[1757213134367,8.18,202.53,202.46,4.65527562]
[1757213134566,8.18,202.53,202.47,4.65527562]
[1757213134767,8.18,202.53,202.45,9.0773132]
[1757213134966,8.18,202.53,202.46,4.65527562]
[1757213135168,8.18,202.53,202.47,4.65527562]
[1757213135368,8.18,202.53,202.45,9.0773132]
[1757213135570,8.18,202.53,202.46,4.66394138]
[1757213135772,8.18,202.53,202.47,4.66394138]
[1757213136072,8.18,202.53,202.45,9.0773132]
[1757213136371,8.18,202.53,202.46,4.66404325]
[1757213136566,8.18,202.53,202.47,4.66404325]
[1757213136870,8.18,202.53,202.45,6.66]
[1757213137071,8.18,202.53,202.46,4.66411273]
[1757213137272,8.18,202.53,202.47,4.66411273]
[1757213137569,8.18,202.53,202.45,6.66]
[1757213137765,8.18,202.53,202.46,4.66432095]
[1757213137970,8.18,202.53,202.47,4.66432095]
[1757213138174,8.18,202.53,202.45,6.66]
[1757213138372,8.18,202.53,202.46,4.66456595]
[1757213138572,8.18,202.53,202.45,6.66]
[1757213138768,8.18,202.53,202.46,4.66456595]
[1757213138968,8.18,202.53,202.45,6.66]
[1757213139168,8.18,202.53,202.46,4.66456595]
[1757213139374,8.18,202.53,202.45,6.66]
[1757213139573,8.18,202.53,202.46,4.66485047]
[1757213139774,8.18,202.53,202.45,6.66]
[1757213140075,8.18,202.53,202.46,4.66485047]
[1757213140273,8.18,202.53,202.45,6.66]
[1757213140470,8.18,202.53,202.46,4.66529925]
[1757213140671,8.18,202.53,202.45,6.66]
[1757213140976,8.18,202.53,202.46,4.66523924]
[1757213141173,8.18,202.53,202.47,4.66523924]
[1757213141375,8.18,202.53,202.45,6.66]
[1757213141573,8.18,202.53,202.46,4.66563479]
[1757213141775,8.18,202.53,202.47,4.66563479]
[1757213142075,8.18,202.53,202.45,6.66]
[1757213142273,8.18,202.53,202.46,4.66573093]
[1757213142472,8.18,202.53,202.47,4.66573093]
[1757213142675,8.18,202.53,202.45,6.66]
[1757213142876,8.18,202.53,202.46,4.66608262]
[1757213143077,8.18,202.53,202.47,4.66608262]
[1757213143278,8.18,202.53,202.45,6.66]
[1757213143475,8.18,202.53,202.46,4.66664469]
[1757213143775,8.18,202.53,202.47,4.66664469]
[1757213143980,8.18,202.53,202.45,6.66]
[1757213144278,8.18,202.53,202.46,4.66664469]
[1757213144479,8.18,202.53,202.47,4.66664469]
[1757213144774,8.18,202.53,202.45,6.66]
[1757213144978,8.18,202.53,202.46,4.66729403]
[1757213145278,8.18,202.53,202.47,4.66729403]
[1757213145476,8.18,202.53,202.45,6.66]
[1757213145677,8.18,202.53,202.46,4.66737249]
[1757213145978,8.18,202.53,202.47,4.66737249]
[1757213146182,8.18,202.53,202.45,6.66]
[1757213146477,10.68006596,202.52,202.44,117.65634163]
[1757213146676,2.4173132,202.52,202.44,117.65634163]
[1757213146871,8.18,202.51,202.44,117.65634163]
[1757213147076,10.68006596,202.52,202.44,117.65634163]
[1757213147379,8.18,202.51,202.44,117.65634163]
[1757213147779,10.68006596,202.52,202.44,117.65634163]
[1757213148179,8.18,202.51,202.45,4.67038884]
[1757213148373,8.18,202.51,202.46,4.67038884]
[1757213148578,49.64275276,202.51,202.42,6.66]
[1757213148774,8.18,202.48,202.43,4.67055236]
[1757213149076,8.26275276,202.49,202.44,4.67055236]
[1757213149276,2.4173132,202.51,202.45,11.34055236]
[1757213149277,7.46,202.5,202.45,11.34055236]
[1757213149481,7.46,202.5,202.46,4.67055236]
[1757213149674,7.46,202.5,202.45,6.67]
[1757213149875,7.46,202.5,202.46,4.67067662]
[1757213150082,7.46,202.5,202.45,6.67]
[1757213150380,7.46,202.5,202.46,4.67046729]
[1757213150582,7.46,202.5,202.45,6.67]
[1757213150775,7.46,202.5,202.46,4.67046729]
[1757213150976,7.46,202.5,202.45,6.67]
[1757213151581,9.00671162,202.5,202.45,6.67]
[1757213151776,9.00671162,202.5,202.46,4.6699859]
[1757213151978,9.00671162,202.5,202.45,6.67]
[1757213152180,9.00671162,202.5,202.46,4.6699859]
[1757213152380,9.00671162,202.5,202.45,6.67]
[1757213152580,9.00671162,202.5,202.46,4.66989918]
[1757213152784,9.00671162,202.5,202.45,6.67]
[1757213154083,1.54671162,202.5,202.45,6.67]
[1757213154282,7.46,202.49,202.45,6.67]
[1757213154585,1.54671162,202.5,202.45,6.67]
[1757213154786,7.46,202.49,202.45,6.67]
[1757213154987,1.54671162,202.5,202.43,1.54671162]
[1757213155286,7.46,202.49,202.44,11.22000666]
[1757213155482,1.54671162,202.5,202.45,4.55000666]
[1757213155784,7.46,202.49,202.45,6.67]
[1757213156085,1.54671162,202.5,202.45,6.67]
[1757213156276,7.46,202.49,202.45,6.67]
[1757213156482,1.54671162,202.5,202.45,6.67]
[1757213156681,7.46,202.49,202.45,6.67]
[1757213156883,1.54671162,202.5,202.45,6.67]
[1757213157082,7.46,202.49,202.45,6.67]
[1757213157278,1.54671162,202.5,202.45,6.67]
[1757213157983,7.46,202.49,202.43,1.54671162]
[1757213158187,7.46,202.51,202.47,1.54671162]
[1757213158488,17.26946438,202.53,202.48,6.67]
[1757213158789,17.26946438,202.53,202.47,8.21671162]
[1757213164491,15.72275276,202.53,202.47,8.21671162]
[1757213164691,17.26946438,202.53,202.47,8.21671162]
[1757213166699,7.46,202.51,202.45,8.21671162]
[1757213166991,7.46,202.51,202.46,4.53640528]
[1757213167297,7.46,202.51,202.45,8.21671162]
[1757213167498,8.26275276,202.52,202.46,4.53642469]
[1757213167797,7.46,202.51,202.47,11.20642469]
[1757213168000,7.46,202.51,202.47,6.67]
[1757213168193,8.26275276,202.52,202.47,6.67]
[1757213169394,7.46,202.51,202.47,6.67]
[1757213169590,8.26275276,202.52,202.47,6.67]
[1757213169786,7.46,202.51,202.47,6.67]
[1757213170594,8.26275276,202.52,202.47,6.67]
[1757213170796,7.46,202.51,202.47,6.67]
[1757213170993,7.46,202.51,202.46,6.67]
[1757213171191,7.46,202.51,202.45,1.54671162]
[1757213171395,7.46,202.51,202.47,6.67]
[1757213171592,7.46,202.51,202.46,6.67]
[1757213171895,8.26275276,202.52,202.45,1.54671162]
[1757213172199,7.46,202.52,202.47,1.54671162]
[1757213172798,7.46,202.52,202.48,6.67]
[1757213173498,8.26275276,202.53,202.48,6.67]
[1757213173798,7.46,202.52,202.48,6.67]
[1757213174298,15.72275276,202.52,202.48,6.67]
[1757213174502,15.72275276,202.52,202.47,1.54671162]
[1757213174691,15.72275276,202.52,202.48,6.67]
[1757213174895,15.72275276,202.52,202.47,1.54671162]
[1757213175699,8.26275276,202.52,202.48,6.67]
[1757213175899,7.46,202.51,202.48,6.67]
[1757213176400,8.26275276,202.52,202.48,6.67]
[1757213176595,7.46,202.53,202.48,6.67]
[1757213176801,9.80946438,202.54,202.48,6.67]
[1757213177303,7.46,202.53,202.48,6.67]
[1757213177700,9.80946438,202.54,202.48,6.67]
[1757213178000,7.46,202.53,202.48,6.67]
[1757213178301,7.46,202.52,202.48,6.67]
[1757213178602,7.46,202.53,202.48,6.67]
[1757213181311,9.80946438,202.54,202.48,6.67]
[1757213181508,7.92,202.53,202.48,6.67]
[1757213181703,9.80946438,202.54,202.48,6.67]
[1757213181903,7.92,202.53,202.48,6.67]
[1757213182301,9.80946438,202.54,202.48,6.67]
[1757213182606,7.92,202.53,202.48,6.67]
[1757213182800,9.80946438,202.54,202.48,6.67]
[1757213183198,7.92,202.53,202.48,6.67]
[1757213183403,9.80946438,202.54,202.48,6.67]
[1757213183897,7.92,202.53,202.48,6.67]
[1757213184099,9.80946438,202.54,202.47,1.54671162]
[1757213184307,7.92,202.53,202.48,4.54049371]
[1757213184506,7.92,202.53,202.47,8.20671162]
[1757213184707,9.80946438,202.54,202.48,4.54049371]
[1757213184901,7.92,202.53,202.47,8.20671162]
[1757213185102,9.80946438,202.54,202.48,4.54049371]
[1757213185306,7.92,202.53,202.47,8.20671162]
[1757213185603,7.92,202.53,202.48,4.54046603]
[1757213185799,7.92,202.53,202.47,8.20671162]
[1757213185999,7.92,202.53,202.48,4.54046603]
[1757213186207,7.92,202.53,202.47,8.21671162]
[1757213186408,7.92,202.53,202.48,4.54049665]
[1757213186610,7.92,202.53,202.47,8.21671162]
[1757213186812,7.92,202.53,202.48,4.54049665]
[1757213187109,7.92,202.53,202.47,8.21671162]
[1757213187307,7.92,202.53,202.48,4.54052751]
[1757213187508,7.92,202.53,202.47,8.21671162]
[1757213187708,9.80946438,202.54,202.48,4.54052751]
[1757213187910,7.92,202.53,202.47,8.21671162]
[1757213188109,7.92,202.53,202.48,4.54052751]
[1757213188308,7.92,202.53,202.47,8.21671162]
[1757213188601,16.18275276,202.53,202.47,8.21671162]
[1757213192913,7.92,202.51,202.45,1.54671162]
[1757213193113,7.92,202.51,202.46,4.54114452]
[1757213193316,7.92,202.51,202.45,1.54671162]
[1757213193615,7.92,202.51,202.46,4.5412878]
[1757213193916,7.92,202.49,202.43,152.24138157]
[1757213194113,7.92,202.49,202.44,4.54152737]
[1757213194415,7.92,202.49,202.43,158.90138157]
[1757213194617,7.92,202.49,202.44,4.5427962]
[1757213194816,7.92,202.49,202.43,158.90138157]
[1757213198218,7.92,202.49,202.44,9.23800985]
[1757213198416,7.92,202.49,202.45,11.07780384]
[1757213198611,1.54671162,202.5,202.45,6.66]
[1757213199013,7.92,202.49,202.43,150.69466995]
[1757213199217,7.92,202.47,202.41,6.66]
[1757213199422,7.92,202.47,202.42,4.41826314]
[1757213199619,1.54671162,202.46,202.41,6.66]
[1757213199924,7.92,202.43,202.42,4.41826314]
[1757213200124,127.68,202.45,202.42,11.07868036]
[1757213200421,127.68,202.45,202.42,6.66]
[1757213200617,7.92,202.44,202.42,6.66]
[1757213208426,7.92,202.44,202.4,6.66]
[1757213208824,7.92,202.44,202.39,1.54671162]
[1757213209021,7.92,202.44,202.4,4.40722649]
[1757213209224,8.15,202.45,202.4,6.68]
[1757213209826,8.15,202.49,202.43,1.54671162]
[1757213210127,18.07671162,202.5,202.44,6.68]
[1757213211529,16.53,202.5,202.44,6.68]
[1757213216030,8.15,202.5,202.44,6.68]
[1757213216631,16.41275276,202.5,202.44,6.68]
[1757213221437,18.82932612,202.5,202.41,6.68]
[1757213223640,8.15,202.48,202.41,6.68]
[1757213225443,8.15,202.46,202.38,6.68]
[1757213226532,8.15,202.46,202.39,4.37826822]
[1757213226737,8.15,202.46,202.38,6.68]
[1757213226933,8.15,202.46,202.4,6.68]
[1757213237547,89.98275276,202.49,202.4,9.09657336]
[1757213237747,8.15,202.5,202.42,6.68]
[1757213237949,8.15,202.5,202.44,6.68]
[1757213238349,8.15,202.5,202.45,4.62039515]
[1757213238547,8.15,202.52,202.46,4.62039515]
[1757213238849,8.15,202.52,202.47,4.62039515]
[1757213239048,8.15,202.52,202.44,6.68]
[1757213239350,8.15,202.52,202.45,4.62047573]
[1757213239544,8.15,202.52,202.46,4.62047573]
[1757213239849,8.15,202.52,202.47,4.62047573]
[1757213240051,8.15,202.52,202.44,6.68]
[1757213240350,8.15,202.52,202.45,4.62039851]
[1757213240545,8.15,202.52,202.46,4.62039851]
[1757213240746,8.15,202.52,202.47,4.62039851]
[1757213241045,8.15,202.52,202.48,4.62039851]
[1757213241246,8.15,202.52,202.44,6.68]
[1757213241442,8.15,202.52,202.45,4.62011801]
[1757213241654,8.15,202.52,202.46,4.62011801]
[1757213241853,10.67932612,202.53,202.47,11.30011801]
[1757213242052,10.67932612,202.53,202.47,6.68]
[1757213242256,7.4,202.51,202.47,6.68]
[1757213242551,7.4,202.52,202.47,6.68]
[1757213245650,10.67932612,202.53,202.47,6.68]
[1757213245851,7.4,202.52,202.47,6.68]
[1757213246352,10.67932612,202.53,202.47,6.68]
[1757213246745,7.4,202.51,202.47,6.68]
[1757213246951,7.4,202.52,202.44,6.68]
[1757213247148,7.4,202.52,202.45,4.56064666]
[1757213247453,7.4,202.52,202.47,6.68]
[1757213247649,7.4,202.52,202.44,6.68]
[1757213247849,7.4,202.52,202.46,6.68]
[1757213248046,8.26275276,202.53,202.47,4.56051962]
[1757213248247,7.4,202.52,202.46,6.68]
[1757213252558,15.66275276,202.52,202.46,6.68]
[1757213256660,8.26275276,202.51,202.43,2.41657336]
[1757213256860,15.66275276,202.51,202.44,4.56864094]
[1757213257063,15.66275276,202.51,202.45,11.23864094]
[1757213257267,8.26275276,202.51,202.47,6.67]
[1757213257872,7.4,202.5,202.47,6.67]
[1757213258173,8.26275276,202.51,202.47,6.67]
[1757213258365,7.4,202.5,202.47,6.67]
[1757213258564,8.26275276,202.51,202.47,6.67]
[1757213258769,7.4,202.5,202.47,6.67]
[1757213258970,8.26275276,202.51,202.47,6.67]
[1757213259375,7.4,202.5,202.47,6.67]
[1757213260667,8.26275276,202.51,202.47,6.67]
[1757213260870,7.4,202.5,202.47,6.67]
[1757213261278,8.26275276,202.51,202.47,6.67]
[1757213261480,7.4,202.5,202.47,6.67]
[1757213261777,8.26275276,202.52,202.46,2.41657336]
[1757213261967,8.26275276,202.52,202.48,6.67]
[1757213262170,8.26275276,202.52,202.47,6.67]
[1757213262878,8.26275276,202.52,202.46,2.41657336]
[1757213263081,15.66275276,202.52,202.48,6.67]
[1757213263378,15.66275276,202.52,202.47,6.67]
[1757213263574,15.66275276,202.52,202.46,2.41657336]
[1757213263775,8.26275276,202.52,202.48,6.67]
[1757213263974,7.4,202.51,202.48,6.67]
[1757213264883,8.26275276,202.52,202.48,6.67]
[1757213265079,15.66275276,202.51,202.45,9.08657336]
[1757213265278,15.66275276,202.51,202.46,11.23715294]
[1757213265474,8.26275276,202.49,202.43,161.91302064]
[1757213265676,15.66275276,202.49,202.44,4.56744567]
[1757213265874,8.26275276,202.49,202.43,161.91302064]
[1757213266089,7.4,202.48,202.44,4.56756431]
[1757213266277,8.26275276,202.49,202.43,161.91302064]
[1757213266675,7.4,202.5,202.43,161.91302064]
[1757213266876,8.26275276,202.51,202.43,161.91302064]
[1757213267378,7.4,202.5,202.43,161.91302064]
[1757213268079,8.26275276,202.51,202.43,161.91302064]
[1757213268269,7.4,202.5,202.44,4.56775913]
[1757213268474,8.26275276,202.51,202.43,161.91302064]
[1757213268674,7.4,202.5,202.44,4.56775913]
[1757213268876,8.26275276,202.51,202.43,161.91302064]
[1757213269077,7.54,202.5,202.44,4.56775913]
[1757213269279,8.26275276,202.51,202.43,161.91302064]
[1757213269478,7.54,202.5,202.44,4.56784387]
[1757213269674,7.54,202.5,202.43,161.91302064]
[1757213269878,7.54,202.5,202.44,4.56784387]
[1757213270183,7.54,202.5,202.44,6.67]
[1757213270377,7.54,202.5,202.45,4.56795289]
[1757213270582,7.54,202.5,202.44,6.67]
[1757213270782,7.54,202.5,202.45,4.56794218]
[1757213270975,7.54,202.5,202.44,6.67]
[1757213271179,7.54,202.5,202.45,4.56794218]
[1757213271377,7.54,202.5,202.44,6.67]
[1757213271577,8.26275276,202.51,202.46,1.546362]
[1757213271778,7.54,202.5,202.47,6.67]
[1757213273983,7.54,202.5,202.46,1.546362]
[1757213274184,9.80911476,202.52,202.46,1.546362]
[1757213274487,17.34911476,202.52,202.47,6.67]
[1757213274691,17.34911476,202.52,202.46,8.216362]
[1757213275286,17.34911476,202.52,202.47,11.23997784]
[1757213275287,9.80911476,202.52,202.47,11.23997784]
[1757213275484,7.54,202.51,202.46,1.546362]
[1757213275686,17.34911476,202.52,202.46,8.216362]
[1757213276486,15.80275276,202.52,202.46,8.216362]
[1757213276678,7.54,202.52,202.47,4.51190122]
[1757213276882,7.54,202.52,202.46,1.546362]
[1757213277187,7.54,202.52,202.48,6.67]
[1757213277382,7.54,202.52,202.46,1.546362]
[1757213277688,7.54,202.52,202.47,4.51224866]
[1757213277886,7.54,202.52,202.46,1.546362]
[1757213278086,15.80275276,202.53,202.47,11.18224866]
[1757213278282,15.80275276,202.53,202.47,6.67]
[1757213278789,8.26275276,202.53,202.49,6.67]
[1757213279285,7.54,202.52,202.49,6.67]
[1757213279488,8.26275276,202.53,202.49,6.67]
[1757213279788,7.54,202.52,202.49,6.67]
[1757213279978,8.26275276,202.53,202.49,6.67]
[1757213280177,7.54,202.52,202.48,1.546362]
[1757213280382,7.54,202.51,202.48,8.216362]
[1757213280583,7.54,202.51,202.48,1.546362]
[1757213280779,7.54,202.51,202.49,6.67]
[1757213280985,8.26275276,202.52,202.49,6.67]
[1757213281187,7.54,202.51,202.49,6.67]
[1757213281588,8.26275276,202.52,202.49,6.67]
[1757213281889,8.26275276,202.52,202.48,1.546362]
[1757213282093,7.54,202.51,202.48,6.67]
[1757213282281,15.80275276,202.52,202.48,6.67]
[1757213282594,15.80275276,202.52,202.5,6.67]
[1757213283488,7.54,202.52,202.5,6.67]
[1757213283687,15.80275276,202.54,202.5,6.67]
[1757213283897,15.80275276,202.54,202.49,1.546362]
[1757213284194,15.80275276,202.54,202.5,6.67]
[1757213284492,7.54,202.54,202.49,1.546362]
[1757213284690,15.80275276,202.54,202.5,6.67]
[1757213284990,8.26275276,202.54,202.5,6.67]
[1757213285491,7.54,202.53,202.48,1.546362]
[1757213285691,7.54,202.53,202.47,1.546362]
[1757213286482,15.80275276,202.53,202.47,1.546362]
[1757213287288,17.34911476,202.53,202.47,1.546362]
[1757213287492,17.34911476,202.53,202.46,6.67]
[1757213288397,17.34911476,202.53,202.47,4.51613193]
[1757213288595,17.34911476,202.53,202.46,6.67]
[1757213288894,17.34911476,202.53,202.47,4.51613193]
[1757213289095,17.34911476,202.53,202.46,6.67]
[1757213289295,17.34911476,202.53,202.47,4.51613193]
[1757213289494,17.34911476,202.53,202.46,6.67]
[1757213289695,17.34911476,202.53,202.47,4.51604669]
[1757213289898,17.34911476,202.53,202.46,6.67]
[1757213290085,17.34911476,202.53,202.47,4.51604669]
[1757213290289,17.34911476,202.53,202.46,6.67]
[1757213290485,17.34911476,202.53,202.47,4.51596691]
[1757213290695,17.34911476,202.53,202.46,6.67]
[1757213290894,17.34911476,202.53,202.47,4.51596691]
[1757213291094,17.34911476,202.53,202.46,6.67]
[1757213291291,17.34911476,202.53,202.47,4.51596691]
[1757213291493,17.34911476,202.53,202.46,6.67]
[1757213291695,17.34911476,202.53,202.47,4.51589244]
[1757213291900,17.34911476,202.53,202.46,6.67]
[1757213292090,15.80275276,202.54,202.48,6.67]
[1757213293397,7.54,202.53,202.5,6.67]
[1757213293994,15.80275276,202.54,202.51,1.546362]
[1757213294197,7.54,202.54,202.51,8.216362]
[1757213294995,7.54,202.54,202.52,6.67]
[1757213297399,7.54,202.56,202.51,1.546362]
[1757213298400,7.54,202.56,202.52,6.67]
[1757213298699,7.54,202.56,202.51,1.546362]
[1757213299199,8.26275276,202.58,202.51,1.546362]
[1757213299394,7.52,202.57,202.55,1.546362]
[1757213299595,7.52,202.57,202.55,8.206362]
[1757213300302,7.52,202.59,202.55,1.546362]
[1757213300990,7.52,202.59,202.56,6.66]
[1757213301193,7.52,202.59,202.55,1.546362]
[1757213301394,7.52,202.59,202.56,6.66]
[1757213302393,7.52,202.59,202.55,1.546362]
[1757213302699,7.52,202.59,202.56,6.66]
[1757213303204,7.52,202.59,202.55,1.546362]
[1757213303404,7.52,202.59,202.56,6.66]
[1757213304600,7.52,202.59,202.55,1.546362]
[1757213304800,7.52,202.59,202.56,6.66]
[1757213306106,7.52,202.59,202.57,8.206362]
[1757213306703,7.52,202.61,202.57,1.546362]
[1757213306905,7.52,202.61,202.58,6.66]
[1757213308099,7.52,202.61,202.59,1.546362]
[1757213310302,7.52,202.61,202.59,8.216362]
[1757213312514,119.62,202.64,202.6,6.67]
[1757213312814,7.52,202.63,202.6,6.67]
[1757213313004,119.62,202.64,202.6,6.67]
[1757213313408,7.52,202.63,202.6,6.67]
[1757213314114,119.62,202.64,202.6,6.67]
[1757213314312,7.52,202.63,202.6,6.67]
[1757213314507,7.52,202.64,202.6,6.67]
[1757213314703,119.6,202.64,202.6,6.67]
[1757213315610,119.6,202.64,202.59,8.216362]
[1757213315806,7.52,202.63,202.59,8.216362]
[1757213316005,9.80911476,202.65,202.59,8.216362]
[1757213316210,31.44,202.64,202.59,1.546362]
[1757213316513,7.52,202.64,202.59,1.546362]
[1757213316712,44.64,202.64,202.59,1.546362]
[1757213317016,7.52,202.64,202.59,1.546362]
[1757213317206,71.48,202.64,202.59,1.546362]
[1757213317911,7.52,202.64,202.59,1.546362]
[1757213318115,96.96,202.64,202.59,1.546362]
[1757213318913,7.52,202.64,202.59,1.546362]
[1757213319914,7.52,202.64,202.58,1.546362]
[1757213320518,7.52,202.64,202.58,8.216362]
[1757213326925,7.52,202.64,202.6,1.546362]
[1757213327225,7.52,202.64,202.6,8.216362]
[1757213327428,119.58,202.65,202.6,8.216362]
[1757213327822,7.52,202.64,202.6,8.216362]
[1757213328023,119.58,202.65,202.6,8.216362]
[1757213329122,7.81,202.64,202.6,8.216362]
[1757213330529,7.81,202.64,202.61,6.67]
[1757213331127,119.58,202.65,202.61,6.67]
[1757213331522,7.81,202.64,202.61,6.67]
[1757213331718,119.58,202.65,202.61,6.67]
[1757213332125,7.81,202.64,202.6,1.546362]
[1757213332327,7.81,202.64,202.61,6.67]
[1757213332523,7.81,202.64,202.62,1.546362]
[1757213332727,7.81,202.64,202.62,8.216362]
[1757213333420,7.81,202.64,202.59,2.41229573]
[1757213333624,7.81,202.67,202.6,6.67]
[1757213339229,119.58,202.68,202.55,20.4]
[1757213339430,7.81,202.67,202.56,13.57590949]
[1757213339634,7.81,202.67,202.57,4.49361376]
[1757213339835,7.81,202.67,202.57,6.67]
[1757213340229,16.07275276,202.67,202.57,6.67]
[1757213341337,16.07275276,202.67,202.58,4.49665772]
[1757213341532,16.07275276,202.67,202.57,6.67]